Cogmind - Beta 15 @@@ ROGUE MODE // 2025.08.05 @ 14:07:12 Player: BattleBruvva Result: Self-destructed Performance ------------- Evolutions (1) 500 Regions Visited (3) 600 Robots Destroyed (31) 155 Value Destroyed (783) 783 Prototype IDs (0) 0 Alien Tech Used (0) 0 Bonus (0) 0 TOTAL SCORE: 2038 Bonus ------- None Cogmind --------- Core Integrity 341/400 Matter 193/300 Energy 160/160 System Corruption 0% Temperature Cool (40) Movement Walking (120) Location -9/Materials Parts ------- > --- POWER (1) -------- Light Nuclear Core > --- PROPULSION (3) --- Aluminum Leg Improved Aluminum Leg Improved Aluminum Leg > --- UTILITY (3) ------ Medium Storage Unit Seismic Detector Medium Armor Plating > --- WEAPON (2) ------- Heavy Assault Rifle Autogun > --- INVENTORY (10) --- Improved Ion Engine Light Treads Light Treads Visual Processing Unit Sensor Array Improved Terrain Scanner Autogun Autogun Grenade Launcher Ripper Peak State ------------ > --- POWER ------------ Light Nuclear Core > --- PROPULSION ------- Aluminum Leg Improved Aluminum Leg Improved Aluminum Leg > --- UTILITY ---------- Medium Storage Unit Seismic Detector Medium Armor Plating > --- WEAPON ----------- Autogun Autogun > --- INVENTORY -------- Ion Engine Light Treads Light Treads Improved Terrain Scanner Trap Extractor Autogun Autogun Grenade Launcher Mining Laser Ripper [Rating: 17] Favorites ----------- Power Improved Ion Engine Engine Improved Ion Engine Power Core Light Nuclear Core Propulsion Aluminum Leg Leg Aluminum Leg Wheel Wheel Utility Seismic Detector Device Seismic Detector Storage Medium Storage Unit Protection Medium Armor Plating Weapon Autogun Ballistic Gun Autogun Launcher Grenade Launcher Build | -11 -10 -10 -9 ------- Run | Yrd Mat Min Mat Slots Evolved 2 | . . . 2 Power . | . . . . Propulsion 1 | . . . 1 Utility 1 | . . . 1 Weapon . | . . . . Parts Attached 25 | 7 7 1 10 Power 3 | 1 1 1 . Engine 2 | 1 1 . . Core 1 | . . 1 . Reactor . | . . . . Propulsion 8 | 2 2 . 4 Treads . | . . . . Leg 6 | . 2 . 4 Wheel 2 | 2 . . . Hover . | . . . . Flight . | . . . . Utility 6 | 2 1 . 3 Device 3 | 1 . . 2 Storage 2 | 1 1 . . Processor . | . . . . Hackware . | . . . . Protection 1 | . . . 1 Artifact . | . . . . Weapon 8 | 2 3 . 3 Energy Gun . | . . . . Energy Cannon . | . . . . Ballistic Gun 7 | 2 2 . 3 Ballistic Cannon . | . . . . Launcher 1 | . 1 . . Special Weapon . | . . . . Impact Weapon . | . . . . Slashing Weapon . | . . . . Piercing Weapon . | . . . . Special Melee Weapon . | . . . . Unidentified Prototypes . | . . . . Parts Lost 2 | . 1 . 1 Power . | . . . . Propulsion 1 | . 1 . . Utility 1 | . . . 1 Weapon . | . . . . Highest Loss Streak 1 | . 1 . 1 To Critical Strikes . | . . . . Average Backups 8 | 4 8 10 9 Power . | . 1 1 1 Propulsion 2 | 2 2 2 2 Utility 2 | . 2 3 2 Weapon 3 | . 2 4 4 Tool/Special . | . . . . Unused Backups 12 | . 2 1 9 Power 2 | . 1 . 1 Propulsion 3 | . 1 . 2 Utility 4 | . . . 4 Weapon 3 | . . 1 2 Tool/Special . | . . . . Average Slot Usage (%) 96 | . 95 100 95 Engine 8 | . 14 12 . Core 4 | . . 1 11 Leg 22 | . 12 28 31 Wheel 4 | . 11 . . Device 12 | . 14 14 10 Storage 12 | . 14 14 11 Protection 3 | . . . 8 Ballistic Gun 24 | . 27 26 20 Peak Build Rating 17 | 7 11 11 17 Average Rating 11 | 5 8 10 15 On Entrance 7 | . 7 11 11 Naked Turns . | . . . . Heaviest Build 29 | 15 24 24 29 Greatest Support 36 | 26 26 20 36 Greatest Overweight (x) 2 | . 2 1 1 Average Overweight (x) . | . . 1 . Largest Inventory Capacity 10 | 8 10 10 10 Average Capacity 9 | 7 9 10 10 Most Carried 10 | 6 10 10 10 Average Carried 8 | 4 8 10 9 Final Capacity 10 | 8 10 10 10 Final Carried 10 | 6 10 10 10 Class Distribution -------------------- 61% | Mutant 38% | Scavenger-Mutant Dominant Class ---------------- Mutant | -10/Materials Mutant | -10/Mines Scavenger-Mutant | -9/Materials Resources | -11 -10 -10 -9 ----------- Run | Yrd Mat Min Mat Matter Collected 1025 | 334 278 139 274 Remotely . | . . . . Salvage Created 1084 | 88 470 164 362 Parts 66 | 10 17 8 31 Haulers Intercepted 1 | . 1 . . Recyclers Shooed 3 | . 3 . . Parts Field Recycled . | . . . . Retrieved Matter . | . . . . Parts Self-Destructed . | . . . . Prevented . | . . . . Kills | -11 -10 -10 -9 ------- Run | Yrd Mat Min Mat Combat Hostiles Destroyed 20 | . 9 4 7 Guns 17 | . 7 3 7 AOE 3 | . 2 1 . Classes Destroyed 9 | 1 5 . 3 Tunneler 6 | 4 . . 2 Hauler 1 | . 1 . . Recycler 2 | . 2 . . Operator 1 | . 1 . . Watcher 1 | . . . 1 Swarmer 3 | . 3 . . Grunt 14 | . 6 4 4 Duelist 1 | . . . 1 Sentry 2 | . . . 2 Best Kill Streak 4 | 1 4 2 2 Combat Bots Only 3 | . 3 2 2 Max Kills in Single Turn 2 | 1 2 2 1 Gunslinging . | . . . . Exploded 1 | . 1 1 . Melee . | . . . . Uniques/NPCs Destroyed . | . . . . Combat | -11 -10 -10 -9 -------- Run | Yrd Mat Min Mat Hostile Shots Fired 108 | . 47 15 46 Missed 27 | . 10 1 16 Hits 81 | . 37 14 30 Melee 1 | . . . 1 Projectile 80 | . 37 14 29 Critical Strikes 5 | . 1 1 3 Damage Taken 959 | . 389 194 376 Core 139 | . 80 . 59 Absorbed by Shields . | . . . . Core Remaining (%) 84 | 100 . 68 . Volleys Fired 94 | 11 39 8 36 Largest 2 | 2 2 2 2 Hottest 53 | 40 50 53 46 Shots Fired 188 | 22 78 16 72 Gun 185 | 22 76 15 72 Cannon . | . . . . Launcher 3 | . 2 1 . Special . | . . . . Kinetic 185 | 22 76 15 72 Thermal . | . . . . Explosive 3 | . 2 1 . Electromagnetic . | . . . . Robot Hit Streak 23 | 3 23 4 9 Robot Miss Streak 3 | 3 3 2 2 Penetration Max . | . . . . Secondary Targets 2 | . 1 . 1 Max Gunslinging Chain 1 | . 1 . 1 Shots Hit Robots 128 | 13 53 10 52 Core Hits 52 | 4 24 7 17 Critical Kills . | . . . . Critical Parts Destroyed . | . . . . Critical Strikes . | . . . . Melee Attacks . | . . . . Impact . | . . . . Slashing . | . . . . Piercing . | . . . . Sneak Attacks . | . . . . Combat Hostiles . | . . . . Follow-up Attacks . | . . . . Damage Inflicted 2014 | 168 814 240 792 Guns 1770 | 168 663 155 784 Cannons . | . . . . Explosions 235 | . 151 84 . Melee . | . . . . Ramming 9 | . . 1 8 Kinetic 1770 | 168 663 155 784 Thermal . | . . . . Explosive 235 | . 151 84 . Electromagnetic . | . . . . Impact . | . . . . Slashing . | . . . . Piercing . | . . . . Highest Corruption . | . . . . Average Corruption . | . . . . Corruption Purged . | . . . . Corruption Blocked . | . . . . Overload Shots . | . . . . Overflow Damage . | . . . . Projectiles . | . . . . Explosions . | . . . . Melee . | . . . . Knockbacks . | . . . . Impact . | . . . . Kinetic . | . . . . Secondary . | . . . . Self-Inflicted Damage 7 | . . 7 . Shots 1 | . . 1 . Rammed . | . . . . Targets Rammed 2 | . . 1 1 Kicked 2 | . . 1 1 Crushed . | . . . . Highest Temperature 86 | . 21 86 40 Average Temperature 19 | . 8 48 10 Received Heat Transfer 492 | . 180 123 189 Siege Activations . | . . . . Martial Activations . | . . . . Shielding Activations . | . . . . Robots Disrupted . | . . . . Combat Hostiles . | . . . . Robots Corrupted . | . . . . Combat Hostiles . | . . . . Parts Fried . | . . . . Impact Corruptions . | . . . . Robots Melted . | . . . . Combat Hostiles . | . . . . Parts Melted . | . . . . Heat Transferred . | . . . . Parts Sabotaged . | . . . . Parts Stolen . | . . . . Parts Stripped . | . . . . Power Chain Reactions . | . . . . Alert | -11 -10 -10 -9 ------- Run | Yrd Mat Min Mat Maximum Alert Level . | . . . . Low Security (%) 100 | 100 100 100 100 Level 1 . | . . . . Level 2 . | . . . . Level 3 . | . . . . Level 4 . | . . . . Level 5 . | . . . . High Security . | . . . . Max Security . | . . . . Peak Influence 98 | 5 98 67 44 Initial 22 | . . . 22 Average 28 | . 54 15 14 Influence Increases 611 | 20 271 107 213 Destroy 0b10 Robot/C 400 | . 180 80 140 Destroy 0b10 Robot/NC 55 | 20 20 . 15 Destroy Leader 94 | . 32 20 42 Successful Hack 40 | . 24 . 16 Destroy Structure 22 | . 15 7 . Influence Decreases 583 | 20 271 50 242 Entered New Map 35 | . . . 35 Time Decay 538 | 20 261 50 207 Lost Part 10 | . 10 . . Squads Dispatched 1 | . . . 1 Investigation . | . . . . Extermination . | . . . . Reinforcement 1 | . . . 1 Assault . | . . . . Garrison . | . . . . Intercept . | . . . . Searches Triggered . | . . . . Construction Impeded . | . . . . Haulers Reinforced . | . . . . Active Scanning Responses . | . . . . Cargo Convoy Interrupts . | . . . . Stealth | -11 -10 -10 -9 --------- Run | Yrd Mat Min Mat Distress Signals 1 | . . . 1 Communications Jammed . | . . . . Distress Signals . | . . . . Times Spotted 41 | . 14 4 23 Peak Tracking Total 7 | . 4 2 7 Tactical Retreats . | . . . . Traps | -11 -10 -10 -9 ------- Run | Yrd Mat Min Mat Traps Triggered . | . . . . Indirectly . | . . . . Trap Hack Attempts . | . . . . Triggered . | . . . . Disarmed . | . . . . Reprogrammed . | . . . . Reused . | . . . . Traps Extracted . | . . . . Installed . | . . . . Triggered . | . . . . Machines | -11 -10 -10 -9 ---------- Run | Yrd Mat Min Mat Machines Disabled . | . . . . Max in Single Turn . | . . . . Machines Repaired . | . . . . Machines Dismantled . | . . . . Machines Sabotaged . | . . . . Overloaded Fab Kills . | . . . . Hacking | -11 -10 -10 -9 --------- Run | Yrd Mat Min Mat Machines Accessed 8 | . 4 . 4 Terminals 8 | . 4 . 4 Fabricators . | . . . . Repair Stations . | . . . . Recycling Units . | . . . . Scanalyzers . | . . . . Garrison Access . | . . . . Total Hacks 19 | . 10 . 9 Successful 11 | . 6 . 5 Failed 8 | . 4 . 4 Catastrophic 1 | . 1 . . Database Lockouts . | . . . . Manual 18 | . 9 . 9 Terminals 19 | . 10 . 9 Fabricators . | . . . . Repair Stations . | . . . . Recycling Units . | . . . . Scanalyzers . | . . . . Garrison Access . | . . . . Terminal Hacks 1 | . 1 . . Robot Analysis 1 | . 1 . . Fabricator Hacks . | . . . . Repair Station Hacks . | . . . . Recycling Unit Hacks . | . . . . Scanalyzer . | . . . . Garrison Access Hacks . | . . . . Unauthorized Hacks 10 | . 5 . 5 Terminals 10 | . 5 . 5 Botnet 7 | . 3 . 4 Skim 3 | . 2 . 1 Fabricators . | . . . . Repair Stations . | . . . . Recycling Units . | . . . . Scanalyzers . | . . . . Garrison Access . | . . . . Data Cores Recovered 1 | . 1 . . Used . | . . . . Hacking Detections 6 | . 4 . 2 Full Trace Events . | . . . . Feedback Events . | . . . . Feedback Blocked . | . . . . Robot Schematics Acquired . | . . . . Robots Built . | . . . . Authchips . | . . . . Time . | . . . . Total Robot Build Rating . | . . . . Part Schematics Acquired . | . . . . Parts Built . | . . . . Authchips . | . . . . Time . | . . . . Total Part Build Rating . | . . . . Parts Repaired . | . . . . Time . | . . . . Parts Recycled . | . . . . Recycled Matter . | . . . . Retrieved Matter . | . . . . Retrieved Components . | . . . . Parts Scanalyzed . | . . . . Part Schematics Acquired . | . . . . Parts Damaged . | . . . . Bothacking | -11 -10 -10 -9 ------------ Run | Yrd Mat Min Mat Used RIF Installer . | . . . . Robots Hacked . | . . . . Non-combat . | . . . . Combat . | . . . . Robot Hacks Applied . | . . . . Relay Couplers Released . | . . . . Fabnet Peak Effective % . | . . . . Robots Rewired . | . . . . Allies Hacked . | . . . . Hacks Repelled . | . . . . Allies | -11 -10 -10 -9 -------- Run | Yrd Mat Min Mat Total Allies . | . . . . Largest Group . | . . . . Highest-Rated Group . | . . . . Highest-Rated Ally . | . . . . Total Orders . | . . . . Ally Attacks . | . . . . Total Damage . | . . . . Kills . | . . . . Allies Corrupted . | . . . . Allies Melted . | . . . . Intel | -11 -10 -10 -9 ------- Run | Yrd Mat Min Mat Active Infowar (turns) 1369 | 15 628 255 471 Seismic 1369 | 15 628 255 471 Robot Analysis Total 1 | . 1 . . Derelict Logs Recovered 1 | . . 1 . Drone Launches . | . . . . Drone Recoveries . | . . . . Exploration | -11 -10 -10 -9 ------------- Run | Yrd Mat Min Mat Turns Passed 1649 | 178 628 255 588 Spaces Moved 981 | 145 348 119 369 Core 6 | 6 . . . Treads . | . . . . Legs 634 | . 146 119 369 Wheels 341 | 139 202 . . Hover . | . . . . Flight . | . . . . Fastest Speed 50 | 50 90 190 120 Average Speed 130 | 88 133 190 125 Slowest Speed 260 | 100 260 190 190 Overloaded Moves . | . . . . Propulsion Burnouts . | . . . . Robots Hopped . | . . . . Potential Cave-ins . | . . . . Cave-ins Triggered . | . . . . Exploration Rate (%) 36 | 5 65 37 37 Regions Visited 3 Branch Regions 1 Pre-discovered Areas . | . . . . Known Exits Taken . | . . . . Unknown Exits Taken 3 | 1 1 1 . Scrap Searched 1 | . . 1 . Spaces Dug . | . . . . Terrain Destroyed 20 | . 13 7 . Melee . | . . . . Projectile . | . . . . AOE 20 | . 13 7 . Terrain Rammed . | . . . . Walls Destroyed . | . . . . Machines Disabled . | . . . . Actions | -11 -10 -10 -9 --------- Run | Yrd Mat Min Mat Total 1173 | 168 436 135 434 Wait 40 | . 30 3 7 Move 978 | 144 347 118 369 Hop . | . . . . Pick Up 15 | 6 5 1 3 Fast Attach 12 | 7 2 . 3 Attach 1 | . . . 1 Detach 1 | . 1 . . Swap 15 | . 6 2 7 Drop 15 | . 6 2 7 Fire 94 | 11 39 8 36 Melee . | . . . . Ram . | . . . . Kick 2 | . . 1 1 Crush . | . . . . Escape Stasis . | . . . . Rewire . | . . . . Trap . | . . . . Miscellaneous . | . . . . Route ------- -11/Scrapyard -10/Materials (discovered 2 exits: *Mat / [*Min]) -10/Mines -9/Materials (discovered 1 exit: [*Min]) History --------- Turn | Location | Event 14 | -11/Scrapyard | Discovered new exit (range 14) 179 | -11/Scrapyard | Entered Materials 323 | -10/Materials | Discovered new exit (range 5) 324 | -10/Materials | Build established: Mutant 784 | -10/Materials | Discovered new exit (range 7) 807 | -10/Materials | Entered Mines 809 | -10/Mines | Met a Derelict bent on vengeance 864 | -10/Mines | Learned Materials trap positions 897 | -10/Mines | A weapon hastily lodged in a ceiling crevice suddenly fell to the ground 1005 | -10/Mines | Found a hidden stash of uninstalled traps 1035 | -10/Mines | Discovered new exit (range 8) 1062 | -10/Mines | Entered Materials 1062 | -9/Materials | Evolved 2 slots: Propulsion x1, Utility x1 1063 | -9/Materials | Loaded intel: 19 trap records 1320 | -9/Materials | Build established: Scavenger-Mutant 1425 | -9/Materials | Discovered new exit (range 6) 1650 | -9/Materials | Self-destructed Last Messages --------------- Testing... Terminal linked with 3 systems. Awaiting botnet instructions. 01556_ O-16 Technician: "IFF HANDSHAKE FAILED. SECURING TERMINAL." 01558_ O-16 Technician uses terminal to summon reinforcements. 01558_ ALERT: Hostiles spotted, dispatching reinforcements to Terminal M008. 01558_ O-16 Technician locks terminal. 01565_ Y-45 Defender destroyed. 01571_ Dropped Trap Extractor. 01572_ Acquired Visual Processing Unit. 01578_ Dropped Mining Laser. 01578_ Acquired Sensor Array. 01603_ G-34 Mercenary destroyed. 01606_ K-01 Serf collects debris. 01608_ Dropped Aluminum Leg. 01636_ Acquired 30 matter. 01646_ Critical hit (Burn: +37). Map ----- +----------------------------------------------------+ | ????????????????# """ """ #?# #?# # | | ????????????????#= ### ### # | | ??????????????????########+### # # | | ??????????????????????# # """# | | ????????????###???????# # """# | | ??????????### ######### T + """# | | ??????????# [ # # """# | | ??????????#""|!!! """ / # """# | | ??????????#"T* !!!""" # ## # # | | ??????????#""!! % """ # ########## # | | ??????????# ![ """ # # """ # # | | ??????????# """ # + """"" ####### | | ??????????# + # """"" #?????? | | ??????????#[ """ " # g # """"" #?????? | | ??????????# """ + # """ #?????? | | ??????????# """ ###=### #?????? | | ??????????# """ #?#!#?# #?????? | | ??????????# """ #?# #?# #?????? | | ??????????# #?#[#?# | #?????? | | ??????????#############?# #?##########?????? | | ????????????????????????# #????????????????? | | ????????????????????????# #????????????????? | | ????????????????????????# #????????????????? | | ????????????????????????# #????????????????? | | ????????????????????????# #????????????????? | | ????????????????????????#@#????????????????? | | ??????????????????????? s#????????????????? | | ????????????????????? Ys ????????????????? | | ????????????????????+ s????????????????? | | ????????????????????# ???????????????? | | ????????????????????# ##???????????????? | | ????????????????????###+###????????????????? | | ???????????????????????????????????????????? | | ???????????????????????????????????????????? | | ???????????????????????????????????????????? | | ???????????????????????????????????????????? | | ???????????????????????????????????????????? | | ???????????????????????????????????????????? | | ???????????????????????????????????????????? | | ???????????????????????????????????????????? | | ???????????????????????????????????????????? | | ???????????????????????????????????????????? | | ???????????????????????????????????????????? | | ???????????????????????????????????????????? | | ???????????????????????????????????????????? | | ???????????????????????????????????????????? | | | | | | | | | +----------------------------------------------------+ Best States ------------- Heat Dissipation 38 Energy Generation 14 Energy Capacity 265 Matter Stores 300 Matter Capacity 300 Sight Range 16 Terrain Scan Density 10 Armor Coverage 225 Evasion (%) 55 Item Schematics ----------------- None Robot Schematics ------------------ None Fabricated ------------ Nothing Repaired ---------- Nothing Alien Tech Used ----------------- None Achievements -------------- None Challenges ------------ None Game ------ Seed CompactArmoredInverter Manual? 0 Play Time 00:14:18 Cumulative 49.8 hours Start 2025.08.05 @ 12:05:34 End 2025.08.05 @ 14:07:12 Sessions 3 Manual Loads 0 Difficulty Rogue Special Mode None Game No. 20 Rogue 6 Adventurer 14 Explorer 0 Win Type - Total 4 Types 1/0/2/0/0/0/0/1/0/0 Lore% 43 Gallery% 39 Achievement% 40 Wizard Run 0 Options --------- Layout 2 ASCII 0 Keyboard 1 Movement Arrows Keybinds 0 Fullscreen 2 Font 24/Smallcaps Map View 50x44 Zoom Use 0% Tactical HUD 1 Map Filters NONE Filters NONE Steam 1 RUN: f52b07aa-61f6-4626-bf53-0af490ee473b